bitfinex/quotes_ETHUSD_20260308
["timestamp","ask_amount","ask_price","bid_price","bid_amount"]
[1773011001750,5.64635313,1943.9,1943.2,2.59148405]
[1773011002315,1.28594208,1944.1,1943.2,5.66049161]
[1773011002626,1.28590179,1944.2,1943.3,3.06900756]
[1773011003331,1.28574367,1944.4,1943.5,3.06900756]
[1773011003847,2.99863695,1944.3,1943.4,1.28640526]
[1773011004052,5.64635313,1944.2,1943.4,1.28640526]
[1773011004259,2.99863695,1944.2,1943.4,1.28640526]
[1773011004461,1.28574367,1944.4,1943.5,3.06900756]
[1773011004623,4.28438062,1944.4,1943.5,3.06900756]
[1773011005458,4.28438062,1944.4,1943.6,1.28627289]
[1773011006422,5.64635313,1944.3,1943.5,4.35529294]
[1773011006622,5.64635313,1944.3,1943.3,5.14582313]
[1773011006818,2.99863695,1944.2,1943.3,5.14582313]
[1773011007065,2.99863695,1944.2,1943.3,8.21483069]
[1773011007584,1.28574367,1944.4,1943.4,3.06900756]
[1773011008732,0.002,1944.2,1943.4,3.06900756]
[1773011009326,0.002,1944.2,1943.5,1.28633907]
[1773011009527,0.002,1944.2,1943.5,4.35534663]
[1773011009828,0.002,1944.2,1943.6,3.06900756]
[1773011011163,0.002,1944.3,1943.6,3.06900756]
[1773011011323,0.002,1944.3,1943.8,3.06900756]
[1773011011530,0.002,1944.3,1943.9,4.37400756]
[1773011012144,0.002,1944.3,1943.9,1.305]
[1773011013366,1.2878098,1944.3,1943.9,1.305]
[1773011013877,1.2878098,1944.3,1943.9,2.59107145]
[1773011014555,0.002,1944.3,1943.9,2.59107145]
[1773011014857,0.002,1944.3,1943.9,5.50081618]
[1773011016766,0.002,1944.5,1944.0,2.90974473]
[1773011017577,0.002,1944.5,1944.1,4.19568681]
[1773011018550,0.002,1944.5,1944.2,2.90974473]
[1773011019289,1e-08,1945.1,1944.3,0.14948499]
[1773011019448,1e-08,1945.1,1944.5,2.90974473]
[1773011019647,1e-08,1945.1,1944.7,2.90974473]
[1773011020149,1e-08,1945.1,1944.6,1.28561143]
[1773011020677,1e-08,1945.1,1944.6,4.19535616]
[1773011020882,1e-08,1945.1,1944.6,1.28561143]
[1773011021081,1e-08,1945.1,1944.7,2.90974473]
[1773011021376,1e-08,1945.1,1944.8,1.306]
[1773011021578,1e-08,1945.1,1944.9,1.28541313]
[1773011021950,1e-08,1945.1,1944.8,2.59147354]
[1773011025265,0.002,1945.3,1944.9,2.90974473]
[1773011026972,0.002,1945.3,1945.0,1.28534704]
[1773011028188,0.002,1945.3,1945.0,4.19509177]
[1773011032474,2.75342637,1945.7,1945.1,2.90974473]
[1773011032674,4.0382191,1945.9,1945.2,1.309]
[1773011033095,2.75342637,1945.9,1945.3,2.90974473]
[1773011033263,1.28623155,1946.0,1945.3,2.90974473]
[1773011034094,0.00153886,1946.0,1945.3,2.90974473]
[1773011034297,0.00153886,1946.0,1945.4,1.28508275]
[1773011034597,5.13747883,1946.5,1945.4,1.28508275]
[1773011034598,0.00153886,1947.0,1945.6,3.05922972]
[1773011034774,0.00153886,1947.0,1945.9,0.14948499]
[1773011034981,1.2855892,1947.0,1946.1,2.90974473]
[1773011035178,1.2855892,1947.0,1946.2,1.31]
[1773011035708,0.00153886,1947.0,1946.3,2.90974473]
[1773011036071,1.28556698,1947.0,1946.3,2.90974473]
[1773011036800,1.28362638,1947.7,1946.4,2.90974473]
[1773011037005,4.03705275,1947.7,1946.4,2.90974473]
[1773011039061,2.75342637,1947.6,1946.6,2.90974473]
[1773011039266,2.75342637,1947.6,1946.7,1.313]
[1773011039709,2.75342637,1947.6,1946.8,2.90974473]
[1773011040799,2.75342637,1947.6,1946.7,1.313]
[1773011041098,5.40114255,1947.1,1946.2,2.90974473]
[1773011041304,2.75342637,1947.1,1946.2,2.90974473]
[1773011041512,2.75342637,1947.7,1946.4,2.90974473]
[1773011041715,0.90569449,1948.0,1947.0,2.90974473]
[1773011041903,0.90569449,1948.0,1946.3,0.065536]
[1773011041904,0.90569449,1948.0,1947.2,2.90974473]
[1773011042520,0.003,1948.5,1947.6,2.90974473]
[1773011042823,0.003,1948.5,1947.8,2.90974473]
[1773011042976,0.49444772,1948.9,1948.0,2.85838826]
[1773011043181,4.07197277,1949.5,1948.2,2.85838826]
[1773011043513,4.07197277,1949.5,1948.0,0.065536]
[1773011043514,2.78957114,1949.3,1948.3,4.14138826]
[1773011043679,1.28240163,1949.5,1948.4,2.85838826]
[1773011044103,2.64771618,1949.4,1948.4,2.85838826]
[1773011044305,4.07197277,1949.5,1948.4,2.85838826]
[1773011044508,2.78957114,1949.4,1948.4,2.85838826]
[1773011045182,1.28251167,1949.3,1948.5,1.28303823]
[1773011045504,2.78957114,1948.8,1948.0,0.00153886]
[1773011045802,2.78957114,1948.5,1948.0,0.00153886]
[1773011046789,1.28251167,1949.3,1948.1,2.74266619]
[1773011046790,2.87285202,1949.1,1948.1,2.74266619]
[1773011046984,1.28251167,1949.3,1948.0,0.00153886]
[1773011046985,2.87285202,1948.8,1948.0,0.00153886]
[1773011047190,2.87285202,1948.8,1948.0,1.28490624]
[1773011047505,4.15575857,1948.7,1948.0,0.00153886]
[1773011048710,1.28290655,1948.7,1948.0,0.00153886]
[1773011049413,5.13162621,1948.8,1948.0,2.74420505]
[1773011049799,1.28284072,1948.8,1948.0,2.74420505]
[1773011049983,5.13073471,1949.1,1948.0,2.74420505]
[1773011050307,2.87285202,1949.0,1948.0,2.74420505]
[1773011050514,1.28262761,1949.2,1948.0,2.74420505]
[1773011050679,4.15739464,1949.3,1948.0,2.74420505]
[1773011051915,4.15739464,1949.3,1948.2,2.74266619]
[1773011052588,2.87285202,1949.2,1948.1,1.28330167]
[1773011052794,4.15739464,1949.3,1948.2,2.74266619]
[1773011053406,5.12948138,1949.7,1948.1,1.28330167]
[1773011053407,1.28299869,1951.0,1949.5,3.38085571]
[1773011053619,1.28294092,1951.0,1949.8,0.14948499]
[1773011053816,1.28294092,1951.0,1949.4,1.536]
[1773011053817,1.28294092,1951.0,1950.1,3.38085571]
[1773011054026,0.00153886,1951.0,1950.2,3.38085571]
[1773011054728,0.00153886,1951.0,1949.9,4.66985571]
[1773011054729,2.64771618,1950.8,1949.9,4.66985571]
[1773011054939,0.00153886,1951.0,1949.9,5.95194898]
[1773011055201,0.00153886,1951.0,1950.0,3.38085571]
[1773011055394,2.64771618,1950.7,1949.7,3.38085571]
[1773011055828,0.00153886,1951.0,1949.7,3.38085571]
[1773011056131,2.64771618,1950.9,1949.9,3.38085571]
[1773011056949,1.28293301,1951.0,1949.9,3.38085571]
[1773011058155,2.64771618,1950.8,1949.9,3.38085571]
[1773011058327,2.64771618,1950.8,1949.6,3.38085571]
[1773011058727,0.00153886,1951.0,1949.6,3.38085571]
[1773011058941,2.64771618,1950.9,1949.6,3.38085571]
[1773011059621,2.630083,1950.8,1949.6,3.38085571]
[1773011060043,0.00153886,1951.0,1949.6,3.38085571]
[1773011060044,2.630083,1950.5,1949.6,3.38085571]
[1773011060317,2.630083,1950.3,1949.6,3.38085571]
[1773011060528,1.28178835,1950.4,1949.6,3.38085571]
[1773011061051,1.28178835,1950.4,1949.4,1.286]
[1773011061235,2.630083,1949.8,1949.0,1.28422882]
[1773011061419,2.630083,1950.1,1949.1,2.74266619]
[1773011061720,4.15464037,1950.4,1949.1,2.74266619]
[1773011062244,1.28178835,1950.4,1949.3,2.74266619]
[1773011062448,5.50293502,1950.3,1949.3,2.74266619]
[1773011062616,1.28175874,1950.5,1949.3,2.74266619]
[1773011062822,2.630083,1950.3,1949.3,2.74266619]
[1773011063022,5.50293502,1950.3,1949.2,1.28257746]
[1773011063349,2.630083,1950.0,1949.2,1.28257746]
[1773011063554,2.630083,1950.0,1949.1,1.28259664]
[1773011064050,5.50293502,1950.0,1949.0,0.00153886]
[1773011064249,1.28218278,1949.8,1949.0,0.00153886]
[1773011065020,2.87285202,1949.7,1949.0,0.00153886]
[1773011065621,2.87285202,1949.7,1948.4,1.28310408]
[1773011065622,2.630083,1949.2,1948.4,1.28310408]
[1773011065850,2.87285202,1949.1,1948.0,5.34052594]
[1773011066049,6.95093502,1949.4,1948.1,2.74266619]
[1773011066535,4.15534311,1949.4,1948.3,2.74266619]
[1773011067054,6.78542611,1949.4,1948.3,2.74266619]
[1773011067253,2.87285202,1949.3,1948.2,1.2832358]
[1773011067455,5.50293502,1948.8,1948.0,1.28485419]
[1773011067696,5.50293502,1948.8,1948.0,1.28489494]
[1773011067953,5.50293502,1948.8,1948.0,1.23318908]
[1773011068250,2.630083,1948.5,1947.7,1.28349933]
[1773011068459,2.630083,1948.5,1947.3,2.74266619]
[1773011068631,4.1559561,1948.4,1947.4,1.28376296]
[1773011068839,2.630083,1948.2,1947.4,1.28376296]
[1773011069132,2.630083,1948.2,1947.3,1.28377655]
[1773011069856,4.1559561,1948.4,1947.3,1.28377655]
[1773011070052,4.15575857,1948.7,1947.4,2.74266619]
[1773011070236,1.28277489,1948.9,1947.6,2.74266619]
[1773011070421,4.15715149,1949.0,1947.6,2.74266619]
[1773011070620,4.15715149,1949.0,1947.8,2.74266619]
[1773011070824,5.50293502,1948.9,1947.8,2.74266619]
[1773011071470,1.28425067,1949.0,1947.8,2.74266619]
[1773011071664,1.28427683,1949.0,1947.8,2.74266619]
[1773011072440,0.00153886,1949.0,1947.8,2.74266619]
[1773011072767,0.00153886,1949.0,1948.0,2.74266619]
[1773011074239,1.28218965,1949.8,1948.5,2.85047025]
[1773011074440,2.78874324,1949.7,1948.5,4.17447025]
[1773011074644,1.28231432,1949.6,1948.6,1.28297239]
[1773011077277,1.28226574,1949.7,1948.7,2.85047025]
[1773011077865,5.12875479,1949.8,1948.7,2.85047025]
[1773011079263,2.630083,1949.7,1948.8,1.28284072]
[1773011079577,5.41882624,1949.7,1948.8,1.28284072]
[1773011079778,2.630083,1949.4,1948.6,5.13182166]
[1773011079981,2.630083,1949.1,1948.1,5.13304258]
[1773011080145,2.78874324,1949.3,1948.2,2.85047025]
[1773011081273,2.78874324,1949.3,1948.0,1.28484053]
[1773011081274,1.28257746,1949.2,1948.0,1.28484053]
[1773011081575,4.0713207,1949.2,1948.0,4.13531078]
[1773011082477,5.13030987,1949.3,1948.1,2.85047025]
[1773011082478,2.73956534,1949.3,1948.1,2.85047025]
[1773011083078,2.78874324,1949.2,1948.1,2.85047025]
[1773011084254,1.28264327,1949.1,1948.2,4.13370605]
[1773011085470,4.07138651,1949.1,1948.2,4.13370605]
[1773011085654,4.07138651,1949.1,1948.3,0.5]
[1773011085858,6.70146951,1949.1,1948.3,0.5]
[1773011086078,4.07138651,1949.1,1948.3,0.5]
[1773011086955,4.07138651,1949.1,1948.4,1.28310408]
[1773011087147,4.07138651,1949.1,1948.3,5.6325132]
[1773011087148,4.07138651,1949.1,1948.3,1.78313645]
[1773011087375,0.002,1949.0,1948.3,1.78313645]
[1773011089483,2.79074324,1949.0,1948.3,1.78313645]
[1773011090290,4.24774324,1949.0,1948.3,1.78313645]
[1773011091305,4.24774324,1949.0,1948.0,0.00153886]
[1773011091306,2.78874324,1948.7,1948.0,1.28487141]
[1773011091580,2.78874324,1948.7,1948.0,0.00153886]
[1773011091809,2.78874324,1948.7,1948.0,1.2849013]
[1773011092890,2.78874324,1948.7,1948.0,1.28490029]
[1773011093383,1.28297239,1948.6,1948.0,0.00153886]
[1773011096574,1.28291283,1948.7,1948.0,2.85200911]
[1773011096778,2.73891283,1948.7,1948.0,2.85200911]
[1773011097106,5.13016531,1949.3,1948.0,2.85200911]
[1773011097107,0.00153886,1950.0,1948.2,2.85047025]
[1773011097265,4.07233677,1950.0,1948.7,2.85047025]
[1773011097467,2.78874324,1949.8,1948.7,2.85047025]
[1773011097738,1.45,1949.7,1948.7,2.85047025]
[1773011098204,0.003,1950.3,1949.1,2.85047025]
[1773011098384,0.003,1950.3,1949.3,2.85047025]
[1773011100264,0.003,1950.3,1949.4,1.28244588]
[1773011100493,0.003,1950.3,1949.5,2.85047025]
[1773011100992,0.002,1950.8,1949.7,2.85047025]
[1773011101203,0.002,1950.8,1949.9,2.85047025]
[1773011101623,0.002,1950.8,1950.1,2.85047025]
[1773011101903,5.28230788,1952.0,1950.3,2.99995524]
[1773011102268,5.28227906,1952.0,1950.3,2.99995524]
[1773011102632,4.00153886,1952.0,1950.8,2.85047025]
[1773011102913,6.64872969,1952.0,1950.5,2.24018949]
[1773011103214,0.33915327,1952.3,1951.1,2.24018949]
[1773011103397,1.61971214,1952.3,1951.1,2.24018949]
[1773011103604,3.96810384,1952.3,1951.1,2.24018949]
[1773011103778,8.05018684,1952.3,1951.1,2.24018949]
[1773011104192,8.05018684,1952.3,1951.2,0.5]
[1773011104405,4.9784747,1952.0,1951.2,0.5]
[1773011104570,2.3483917,1951.9,1951.2,0.5]
[1773011105302,3.8023917,1951.9,1951.2,0.5]
[1773011106099,3.8023917,1951.9,1951.0,0.00153886]
[1773011106500,2.37956652,1951.6,1951.0,0.00153886]
[1773011106799,3.94127994,1951.8,1951.0,0.00153886]
[1773011107002,1.456,1951.7,1951.0,0.00153886]
[1773011107982,3.94127994,1951.8,1951.0,0.00153886]
[1773011108298,1.457,1951.7,1951.0,0.00153886]
[1773011108507,5.11756672,1951.6,1951.0,0.00153886]
[1773011108721,2.37956652,1951.5,1951.0,0.00153886]
[1773011108880,5.00964952,1951.4,1950.3,2.29884503]
[1773011109200,2.7380002,1951.6,1950.1,1.28195127]
[1773011109201,2.37956652,1951.3,1950.1,1.28195127]
[1773011109588,2.37956652,1951.1,1950.1,1.28195127]
[1773011109921,2.630083,1951.2,1950.0,1.28358772]
[1773011109922,5.00964952,1950.9,1950.0,1.28358772]
[1773011110081,1.459,1950.8,1950.0,0.00153886]
[1773011110291,1.459,1950.8,1950.0,1.28358552]
[1773011110482,1.28159122,1950.7,1950.0,0.00153886]
[1773011110685,2.37956652,1950.6,1950.0,0.00153886]
[1773011111215,2.37956652,1950.6,1949.3,1.28246467]
[1773011111216,2.37956652,1950.4,1949.3,1.28246467]
[1773011111385,2.630083,1950.2,1949.2,3.5814179]
[1773011111580,1.46,1950.1,1949.2,3.5814179]
[1773011111914,2.37956652,1950.4,1949.2,1.28257287]
[1773011112092,1.46,1950.2,1949.3,2.29884503]
[1773011112490,6.29163505,1950.1,1949.1,1.28264327]
[1773011112806,2.630083,1949.8,1949.0,0.00153886]
[1773011112994,2.630083,1949.8,1949.0,1.28424006]
[1773011113606,2.630083,1949.8,1949.0,0.00153886]
[1773011113786,2.630083,1949.8,1949.0,1.28423741]
[1773011113978,5.12586986,1950.9,1949.4,0.065536]
[1773011114179,0.00153886,1951.0,1949.9,2.29884503]
[1773011114379,0.00153886,1951.0,1950.0,1.28205128]
[1773011114679,0.00153886,1951.0,1950.1,2.29884503]
[1773011117124,0.00153886,1951.0,1950.3,2.29884503]
[1773011118421,6.57142856,1951.8,1950.2,1.2819198]
[1773011118422,0.34309205,1951.9,1950.4,2.36438103]
[1773011118596,0.005,1951.9,1950.6,2.29884503]
[1773011118993,0.005,1951.9,1950.8,2.29884503]
[1773011119194,0.00153886,1952.0,1951.2,2.29884503]
[1773011120389,1.8289697,1952.8,1951.8,2.29884503]
[1773011120593,2.37956652,1952.6,1951.2,2.29884503]
[1773011121197,1.28040973,1952.5,1951.4,2.29884503]
[1773011121396,1.82896367,1952.8,1951.4,2.29884503]
[1773011121620,0.54875046,1952.8,1951.6,2.29884503]
[1773011121818,0.54875046,1952.8,1951.7,0.14948499]
[1773011122019,1.82896807,1952.8,1951.8,2.29884503]
[1773011122405,4.20853459,1952.8,1951.4,2.29884503]
[1773011123290,4.20853459,1952.8,1951.5,1.28106584]
[1773011123511,4.20853459,1952.8,1951.6,2.29884503]
[1773011124695,2.92831698,1952.8,1951.6,2.29884503]
[1773011124901,1.82896447,1952.8,1951.6,2.29884503]
[1773011125198,1.82896684,1952.8,1951.6,2.29884503]
[1773011125499,1.82896684,1952.8,1951.7,1.28093456]
[1773011125901,4.20853336,1952.8,1951.7,1.28093456]
[1773011126099,2.37956652,1952.6,1951.7,1.28093456]
[1773011126325,1.82896684,1952.8,1951.3,1.28115319]
[1773011126326,2.37956652,1952.3,1951.3,1.28115319]
[1773011127521,1.28060649,1952.2,1951.1,5.1247886]
[1773011127812,3.66017301,1952.2,1951.1,5.1247886]
[1773011128306,2.37956652,1952.5,1951.2,2.29884503]
[1773011129641,2.37956652,1952.2,1951.3,1.28119715]
[1773011130112,2.75242879,1952.5,1951.4,2.29884503]
[1773011130314,1.472,1952.5,1951.4,2.29884503]
[1773011130522,2.75241899,1952.5,1951.4,2.29884503]
[1773011130722,2.37956652,1952.2,1951.3,1.28119715]
[1773011131026,1.473,1952.4,1951.3,3.58004218]
[1773011131224,1.473,1952.4,1951.4,2.29884503]
[1773011131605,2.7535265,1952.4,1951.5,1.28106584]
[1773011131930,5.13309302,1952.4,1951.5,1.28106584]
[1773011132131,2.37956652,1952.3,1951.5,1.28106584]
[1773011132430,2.37956652,1952.3,1951.1,5.12531384]
[1773011132810,2.37956652,1952.3,1951.2,1.94677513]
[1773011134234,2.75350205,1952.4,1951.3,1.28119715]
[1773011134435,2.05185976,1952.3,1951.3,3.22797228]
[1773011134627,2.05185976,1952.3,1951.3,1.28119715]
[1773011135341,2.05185976,1952.1,1951.1,1.28132848]
[1773011136125,2.05185976,1951.9,1951.0,0.00153886]
[1773011137236,2.51847725,1951.9,1951.0,0.00153886]
[1773011137540,2.05185976,1951.8,1951.0,0.00153886]
[1773011137750,3.99547725,1951.9,1951.0,0.00153886]
[1773011137931,1.477,1951.9,1951.0,0.00153886]
[1773011138349,1.28086894,1951.8,1951.0,1.28293301]
[1773011138537,2.75785324,1951.9,1951.0,1.28293301]
[1773011138915,1.477,1951.9,1951.0,3.22970814]
[1773011139650,1.477,1952.0,1951.1,1.94677513]
[1773011140938,1.2807377,1952.0,1951.2,1.28126281]
[1773011141146,2.7577377,1952.0,1951.2,1.28126281]
[1773011141335,4.80959746,1952.0,1951.2,1.28126281]
[1773011141827,2.05185976,1951.9,1951.2,1.28126281]
[1773011142450,2.05185976,1951.9,1951.1,0.001]
[1773011142451,2.05185976,1951.8,1951.1,0.001]
[1773011142649,2.05185976,1951.8,1951.0,0.00153886]
[1773011143228,1.28093456,1951.7,1951.0,0.00153886]
[1773011143427,2.05185976,1951.6,1951.0,0.00153886]
[1773011144822,2.05185976,1951.5,1951.0,0.00153886]
[1773011145121,2.05185976,1951.3,1951.0,0.00153886]
[1773011145322,3.33312257,1951.2,1951.0,0.00153886]
[1773011146144,2.05185976,1951.1,1950.3,1.28185407]
[1773011146863,2.05185976,1951.1,1950.2,0.001]
[1773011147359,2.05185976,1950.9,1950.2,0.001]
[1773011147560,1.28139415,1951.0,1950.2,0.001]
[1773011147781,2.05185976,1950.8,1950.2,0.001]
[1773011148056,1.28139415,1951.0,1950.2,0.001]
[1773011148360,1.476,1950.7,1950.2,0.001]
[1773011149060,3.52785976,1950.7,1950.2,0.001]
[1773011149443,1.28165692,1950.6,1950.2,0.001]
[1773011149854,3.33351668,1950.6,1950.2,0.001]
[1773011151260,1.28165692,1950.6,1950.0,0.00153886]
[1773011151636,1.475,1950.5,1950.0,0.00153886]
[1773011152862,3.52685976,1950.5,1950.0,0.00153886]
[1773011153237,2.05185976,1950.4,1950.0,0.00153886]
[1773011153447,1.28165692,1950.6,1950.0,0.00153886]
[1773011153448,1.28172263,1950.5,1950.0,0.00153886]
[1773011154176,2.75566912,1950.6,1950.0,0.00153886]
[1773011154879,2.05185976,1951.8,1950.3,1.94677513]
[1773011155091,2.05185976,1951.6,1950.3,1.94677513]
[1773011155463,2.05185976,1951.6,1950.4,1.28178835]
[1773011155464,2.05185976,1951.4,1950.4,1.28178835]
[1773011155666,1.456,1951.3,1950.4,3.22856348]
[1773011156402,0.002,1951.0,1950.4,3.22856348]
[1773011156696,0.002,1951.0,1950.5,1.94677513]
[1773011156986,1.458,1951.5,1950.5,1.94677513]
[1773011157697,1.28113149,1951.4,1950.6,1.28165692]
[1773011157983,3.33299125,1951.4,1950.6,1.28165692]
[1773011158854,2.05185976,1951.3,1950.3,5.12724847]
[1773011160390,1.28126281,1951.2,1950.3,1.28185407]
[1773011160689,2.05185976,1951.1,1950.3,1.28185407]
[1773011162393,1.463,1951.0,1950.3,1.28185407]
[1773011162759,1.28139415,1951.0,1950.2,5.12751031]
[1773011162985,1.464,1950.9,1950.2,5.12751031]
[1773011163458,1.464,1951.3,1950.3,1.88285846]
[1773011164602,3.38255962,1951.3,1950.3,1.88285846]
[1773011164961,3.38255962,1951.3,1950.2,5.12763396]
[1773011164962,1.91855962,1951.1,1950.2,5.12763396]
[1773011165457,1.91855962,1951.1,1950.1,0.001]
[1773011165673,1.91855962,1951.1,1950.2,1.2819198]
[1773011166973,1.28139415,1951.0,1950.1,6.9845198]
[1773011167168,1.28137986,1951.1,1950.2,1.85573679]
[1773011167364,1.466,1950.9,1950.2,1.85573679]
[1773011169394,1.466,1950.9,1950.3,1.28185407]
[1773011169776,2.74746259,1950.9,1950.3,1.28185407]
[1773011169981,2.74746259,1950.9,1950.3,1.28285407]
[1773011170286,1.466,1951.0,1950.4,1.85573679]
[1773011172085,1.466,1951.0,1950.5,1.28172263]
[1773011172285,1.466,1951.0,1950.3,0.001]
[1773011172286,1.73306819,1950.9,1950.3,0.001]
[1773011172489,1.73306819,1950.9,1950.3,1.28280983]
[1773011174003,2.74745044,1951.0,1950.3,1.28280983]
[1773011174004,1.73306819,1951.2,1950.3,1.85673679]
[1773011174207,1.465,1951.1,1950.3,1.85673679]
[1773011175280,1.73306819,1950.8,1950.3,0.001]
[1773011176207,1.28148218,1950.9,1950.3,0.001]
[1773011176509,1.455,1950.7,1950.3,0.001]
[1773011177096,3.18806819,1950.7,1950.3,0.001]
[1773011177374,1.34227807,1950.7,1950.3,0.001]
[1773011177598,1.456,1951.0,1950.3,1.85673679]
[1773011178178,2.73744718,1951.0,1950.4,1.28178835]
[1773011179293,1.73306819,1950.9,1950.3,0.001]
[1773011179974,4.36020286,1950.9,1950.3,0.001]
[1773011180175,1.73306819,1950.8,1950.1,0.001]
[1773011180409,1.73306819,1950.6,1950.1,0.001]
[1773011181892,3.19206819,1950.5,1950.1,0.001]
[1773011182991,3.01485654,1950.4,1950.1,0.001]
[1773011183784,3.01485654,1950.4,1950.2,0.001]
[1773011184193,1.28177299,1950.5,1950.2,0.001]
[1773011184415,1.46,1950.4,1950.2,0.001]
[1773011185218,2.74183196,1950.4,1950.2,0.001]
[1773011186718,1.46,1950.4,1950.2,0.001]
[1773011187023,1.461,1950.3,1950.2,0.001]
[1773011187211,1.461,1950.4,1950.2,0.001]
[1773011189932,2.74282098,1950.4,1950.2,0.001]
[1773011190087,4.47588917,1950.4,1950.1,0.001]
[1773011195834,1.66750621,1950.3,1950.0,0.00253886]
[1773011196127,1.66750621,1950.3,1949.0,0.00253886]
[1773011196128,1.66750621,1949.8,1949.1,3.0224522]
[1773011196328,3.13050621,1949.7,1949.1,0.001]
[1773011196536,1.66750621,1949.4,1949.1,0.001]
[1773011196708,1.66750621,1949.4,1948.7,1.28287489]
[1773011196709,1.67104506,1949.0,1948.1,1.73983276]
[1773011197032,1.67104506,1949.0,1948.2,1.74237162]
[1773011197033,1.464,1948.9,1948.2,1.74237162]
[1773011197221,1.464,1948.8,1948.2,1.74237162]
[1773011197410,1.464,1948.8,1948.3,1.74237162]
[1773011197610,1.46046114,1948.8,1948.3,1.73883276]
[1773011198228,1.46046114,1948.8,1948.3,1.28311371]
[1773011198436,2.74334453,1948.8,1948.3,1.28311371]
[1773011198619,1.46046114,1948.8,1948.3,1.28311371]
[1773011199024,0.00353885,1949.0,1948.4,1.73883276]
[1773011199228,1.465,1948.9,1948.4,1.73883276]
[1773011200019,1.465,1948.9,1948.3,1.28311371]
[1773011200432,1.465,1948.9,1948.1,9.60921437]
[1773011200433,2.74778307,1948.9,1948.1,9.60921437]
[1773011200622,4.29722179,1948.8,1948.1,0.001]
[1773011200804,1.66750621,1948.7,1948.1,0.001]
[1773011201939,1.66750621,1948.7,1948.0,0.00153886]
[1773011202316,1.66750621,1948.5,1948.0,0.00153886]
[1773011202515,1.467,1948.4,1948.0,0.00153886]
[1773011202813,1.66750621,1948.4,1948.0,0.00153886]
[1773011203030,3.13450621,1948.3,1948.0,0.00153886]
[1773011203337,2.62971558,1947.8,1947.0,1.28555221]
[1773011203501,1.467,1947.7,1947.0,1.28556478]
[1773011203906,3.13450621,1947.7,1947.0,0.00153886]
[1773011204332,3.13450621,1947.7,1947.0,1.28555926]
[1773011204646,1.28363113,1947.6,1947.0,0.00153886]
[1773011205139,1.66750621,1947.5,1947.0,0.00153886]
[1773011205305,1.469,1947.4,1947.0,0.00153886]
[1773011205846,1.66750621,1947.5,1947.0,0.00153886]
[1773011205847,1.28363113,1947.6,1947.0,0.00153886]
[1773011206047,1.469,1947.3,1947.0,0.00153886]
[1773011206909,2.7528371,1947.3,1947.0,0.00153886]
[1773011207111,1.469,1947.3,1947.0,0.00153886]
[1773011207947,1.66750621,1947.9,1947.0,1.74037162]
[1773011208107,1.471,1947.8,1947.0,1.74037162]
[1773011208929,1.471,1947.8,1947.1,1.28396076]
[1773011209240,1.472,1947.7,1947.1,1.28396076]
[1773011209437,2.62971558,1948.2,1947.2,1.73883276]
[1773011209438,1.66750621,1948.2,1947.2,1.73883276]
[1773011209605,1.28277489,1948.9,1947.2,1.73883276]
[1773011209806,3.13950621,1948.8,1947.2,1.73883276]
[1773011210006,1.66750621,1948.7,1947.2,1.73883276]
[1773011210624,1.473,1948.6,1947.2,1.73883276]
[1773011210824,1.473,1948.6,1947.4,1.73883276]
[1773011210825,2.75603116,1948.6,1947.4,1.73883276]
[1773011211024,1.66750621,1948.5,1947.4,1.73883276]
[1773011211230,1.66750621,1948.4,1947.4,1.73883276]
[1773011211940,4.29722179,1947.9,1947.1,0.001]
[1773011212121,1.66750621,1947.8,1947.1,1.28495529]
[1773011212434,1.474,1947.7,1947.1,0.001]
[1773011212634,5.77122179,1947.7,1947.1,0.001]
[1773011212813,1.28363113,1947.6,1947.1,0.001]
[1773011213611,7.05481283,1947.7,1947.1,0.001]
[1773011213935,2.95090532,1948.0,1947.1,0.001]
[1773011214109,3.14250621,1947.9,1947.1,0.001]
[1773011214510,1.475,1947.9,1947.1,0.001]
[1773011214709,1.475,1948.0,1947.1,0.001]
[1773011215012,1.28343344,1947.9,1947.1,0.001]
[1773011215222,2.95093965,1947.9,1947.1,0.001]
[1773011216058,1.476,1947.8,1947.1,0.001]
[1773011217144,1.476,1947.8,1947.1,1.73983276]
[1773011217547,1.476,1948.2,1947.1,1.73983276]
[1773011217707,2.95059184,1948.5,1947.1,1.73983276]
[1773011217912,1.476,1948.4,1947.1,1.73983276]
[1773011218407,2.95055073,1948.5,1947.1,1.73983276]
[1773011218611,4.42755073,1948.5,1947.1,1.73983276]
[1773011219229,4.42755073,1948.5,1947.3,1.73883276]
[1773011219412,2.9502811,1948.9,1947.3,1.73883276]
[1773011219760,1.477,1948.8,1947.3,1.73883276]
[1773011220051,1.66750621,1949.8,1947.9,0.065536]
[1773011220260,1.66750621,1949.8,1948.3,1.73883276]
[1773011220471,3.91183261,1949.9,1948.3,1.73883276]
[1773011220472,1.66750621,1949.4,1948.3,1.73883276]
[1773011220750,1.28211703,1949.9,1948.3,1.73883276]
[1773011220962,1.478,1949.5,1948.3,1.73883276]
[1773011221144,1.66750621,1949.4,1948.3,1.73883276]
[1773011221529,1.28251167,1949.3,1948.4,1.28310408]
[1773011221745,2.95001788,1949.3,1948.4,1.28310408]
[1773011223168,0.002,1949.2,1948.4,1.28310408]
[1773011223478,0.002,1949.2,1948.5,1.6014184]
[1773011223658,5.12999022,1950.0,1948.5,1.6014184]
[1773011223659,0.002,1949.5,1948.5,1.6014184]
[1773011224180,0.002,1949.5,1948.7,1.6014184]
[1773011224571,1.54689823,1949.5,1948.4,2.88452248]
[1773011224953,1.54489823,1949.4,1948.4,1.28310408]
[1773011225966,1.28251167,1949.3,1948.3,5.13241634]
[1773011226162,1.52836525,1949.2,1948.3,1.28316994]
[1773011226365,1.52836525,1949.1,1948.0,0.00153886]
[1773011226552,1.52836525,1948.8,1948.0,0.00153886]
[1773011226866,1.52836525,1948.5,1948.0,0.00153886]
[1773011227053,1.52836525,1948.4,1948.0,0.00153886]
[1773011227773,1.52836525,1948.3,1948.0,0.00153886]
[1773011227943,1.2832358,1948.2,1948.0,0.00153886]
[1773011228571,1.28322058,1948.3,1948.0,0.00153886]
[1773011228865,5.13212016,1948.6,1948.0,0.00153886]
[1773011228866,6.61328559,1948.5,1948.0,0.00153886]
[1773011229063,5.13228559,1948.5,1948.0,0.00153886]
[1773011229270,1.481,1948.4,1948.0,0.00153886]
[1773011230344,1.28316994,1948.3,1948.0,0.00153886]
[1773011231079,1.52836525,1948.2,1947.2,1.28389482]
[1773011231255,1.52836525,1948.0,1947.2,1.28389482]
[1773011231591,4.15808083,1947.8,1947.1,0.001]
[1773011231741,3.01036525,1947.7,1947.1,0.001]
[1773011232384,1.28363113,1947.6,1947.1,0.001]